Cogmind - Beta 9.1 @@@ ROGUE MODE // 2019.11.02 @ 21:29:21 Player: Eggking Result: Destroyed by as-91304 with Assembled Blade Performance ------------- Evolutions (0) 0 Regions Visited (2) 400 Robots Destroyed (18) 90 Value Destroyed (541) 541 Prototype IDs (0) 0 Alien Tech Used (0) 0 Bonus (0) 0 TOTAL SCORE: 1031 Bonus ------- None Cogmind --------- Core Integrity 0/250 Matter 290/300 Energy 258/265 System Corruption 0% Temperature Cool (0) Location -10/Mines Parts ------- Power (1) Improved Ion Engine Propulsion (2) Aluminum Leg Aluminum Leg Utility (2) Large Storage Unit High-capacity Storage Unit Weapon (2) Heavy Assault Rifle Makeshift Hammer Inventory (18) Light Ion Engine Light Nuclear Core Armored Wheel Armored Wheel Armored Wheel Armored Wheel Large Storage Unit Large Storage Unit Core Shielding Core Shielding Light Armor Plating Light EM Pulse Cannon Light EM Pulse Cannon Light EM Pulse Cannon Assault Rifle Heavy Assault Rifle Grenade Launcher Datajack Peak State ------------ Power Improved Ion Engine Propulsion Aluminum Leg Aluminum Leg Utility Large Storage Unit High-capacity Storage Unit Weapon Heavy Assault Rifle Makeshift Hammer Inventory Light Ion Engine Light Nuclear Core Armored Wheel Armored Wheel Armored Wheel Armored Wheel Large Storage Unit Large Storage Unit Core Shielding Core Shielding Light Armor Plating Light EM Pulse Cannon Light EM Pulse Cannon Light EM Pulse Cannon Assault Rifle Heavy Assault Rifle Grenade Launcher Datajack [Rating: 14] Favorites ----------- Power Improved Ion Engine Engine Improved Ion Engine Propulsion Aluminum Leg Leg Aluminum Leg Utility Large Storage Unit Storage Large Storage Unit Weapon Heavy Assault Rifle Energy Gun Small Laser Ballistic Gun Heavy Assault Rifle Impact Weapon Makeshift Hammer Build | -11 -10 -10 ------- Run | Scr Mat Min Slots Evolved . | . . . Power . | . . . Propulsion . | . . . Utility . | . . . Weapon . | . . . Parts Attached 17 | . 16 1 Power 3 | . 3 . Engine 3 | . 3 . Core . | . . . Reactor . | . . . Propulsion 3 | . 3 . Treads . | . . . Leg 3 | . 3 . Wheel . | . . . Hover . | . . . Flight . | . . . Utility 4 | . 4 . Device . | . . . Storage 4 | . 4 . Processor . | . . . Hackware . | . . . Protection . | . . . Artifact . | . . . Weapon 7 | . 6 1 Energy Gun 2 | . 2 . Energy Cannon . | . . . Ballistic Gun 4 | . 4 . Ballistic Cannon . | . . . Launcher . | . . . Special Weapon . | . . . Impact Weapon 1 | . . 1 Slashing Weapon . | . . . Piercing Weapon . | . . . Special Melee Weapon . | . . . Unidentified Prototypes . | . . . Parts Lost 10 | . 10 . Power 2 | . 2 . Propulsion 2 | . 2 . Utility . | . . . Weapon 6 | . 6 . Highest Loss Streak 4 | . 4 . Average Slot Usage (%) 96 | . 95 100 Engine 13 | . 13 14 Leg 27 | . 27 28 Storage 26 | . 25 28 Energy Gun 4 | . 6 . Ballistic Gun 21 | . 20 27 Naked Turns . | . . . Heaviest Build 61 | 10 61 61 Greatest Support 20 | 20 20 20 Greatest Overweight (x) 6 | . 6 3 Average Overweight (x) 1 | . 1 3 Largest Inventory Capacity 18 | . 18 18 Average Capacity 15 | . 14 18 Most Carried 18 | . 18 18 Average Carried 14 | . 13 16 Final Capacity 18 | 6 18 18 Final Carried 18 | 6 15 18 Class Distribution -------------------- 100% | Mutant Dominant Class ---------------- Mutant | -10/Materials Mutant | -10/Mines Resources | -11 -10 -10 ----------- Run | Scr Mat Min Matter Collected 571 | 200 347 24 Remotely . | . . . Salvage Created 738 | . 655 83 Parts 34 | . 32 2 Haulers Intercepted . | . . . Recyclers Shooed 2 | . . 2 Parts Field Recycled . | . . . Retrieved Matter . | . . . Parts Self-Destructed . | . . . Prevented . | . . . Kills | -11 -10 -10 ------- Run | Scr Mat Min Combat Hostiles Destroyed 15 | . 15 . Guns 15 | . 15 . Classes Destroyed 5 | . 4 1 Builder 1 | . 1 . Recycler 1 | . . 1 Watcher 1 | . 1 . Swarmer 2 | . 2 . Grunt 13 | . 13 . Best Kill Streak 3 | . 3 1 Combat Bots Only 3 | . 3 . Max Kills in Single Turn 1 | . 1 1 Gunslinging . | . . . Exploded . | . . . Melee . | . . . Uniques/NPCs Destroyed . | . . . Combat | -11 -10 -10 -------- Run | Scr Mat Min Damage Taken 1342 | . 1217 125 Core 256 | . 194 62 Absorbed by Shields . | . . . Core Remaining (%) 100 | 100 . . Volleys Fired 77 | . 74 3 Largest 2 | . 2 2 Hottest 90 | . 90 46 Shots Fired 126 | . 120 6 Gun 126 | . 120 6 Cannon . | . . . Launcher . | . . . Special . | . . . Kinetic 86 | . 80 6 Thermal 40 | . 40 . Explosive . | . . . Electromagnetic . | . . . Robot Hit Streak 10 | . 10 3 Robot Miss Streak 4 | . 4 1 Penetration Max . | . . . Secondary Targets 1 | . 1 . Max Gunslinging Chain 1 | . 1 . Shots Hit Robots 84 | . 78 6 Core Hits 31 | . 30 1 Critical Hits . | . . . Critical Kills . | . . . Critical Parts Destroyed . | . . . Melee Attacks 6 | . . 6 Impact 6 | . . 6 Slashing . | . . . Piercing . | . . . Sneak Attacks . | . . . Combat Hostiles . | . . . Follow-up Attacks . | . . . Damage Inflicted 1250 | . 1107 143 Guns 1168 | . 1100 68 Cannons . | . . . Explosions . | . . . Melee 75 | . . 75 Ramming 7 | . 7 . Kinetic 862 | . 794 68 Thermal 306 | . 306 . Explosive . | . . . Electromagnetic . | . . . Impact 75 | . . 75 Slashing . | . . . Piercing . | . . . Highest Corruption . | . . . Average Corruption . | . . . Corruption Purged . | . . . Overload Shots . | . . . Overflow Damage . | . . . Projectiles . | . . . Explosions . | . . . Melee . | . . . Knockbacks . | . . . Impact . | . . . Kinetic . | . . . Secondary . | . . . Self-Inflicted Damage . | . . . Shots . | . . . Rammed . | . . . Targets Rammed 1 | . 1 . Kicked 1 | . 1 . Crushed . | . . . Highest Temperature 260 | . 260 . Average Temperature 85 | . 85 . Received Heat Transfer 639 | . 639 . Siege Activations . | . . . Robots Corrupted . | . . . Combat Hostiles . | . . . Parts Fried . | . . . Impact Corruptions . | . . . Robots Melted . | . . . Combat Hostiles . | . . . Parts Melted 1 | . 1 . Heat Transferred 748 | . 748 . Parts Sabotaged . | . . . Parts Stolen . | . . . Parts Stripped . | . . . Power Chain Reactions . | . . . Missiles Intercepted . | . . . Alert | -11 -10 -10 ------- Run | Scr Mat Min Peak Influence 140 | . 140 52 Average Influence 40 | . 38 49 Maximum Alert Level . | . . . Low Security (%) 100 | . . . Level 1 . | . . . Level 2 . | . . . Level 3 . | . . . Level 4 . | . . . Level 5 . | . . . High Security . | . . . Max Security . | . . . Squads Dispatched 3 | . 3 . Investigation . | . . . Extermination . | . . . Reinforcement 3 | . 3 . Assault . | . . . Garrison . | . . . Intercept . | . . . Construction Impeded . | . . . Haulers Reinforced . | . . . Stealth | -11 -10 -10 --------- Run | Scr Mat Min Distress Signals 3 | . 3 . Communications Jammed . | . . . Distress Signals . | . . . Times Spotted 31 | . 30 1 Peak Tracking Total 4 | . 4 1 Tactical Retreats 3 | . 3 . Traps | -11 -10 -10 ------- Run | Scr Mat Min Traps Triggered . | . . . Indirectly . | . . . Trap Hack Attempts . | . . . Triggered . | . . . Disarmed . | . . . Reprogrammed . | . . . Reused . | . . . Traps Extracted . | . . . Installed . | . . . Triggered . | . . . Machines | -11 -10 -10 ---------- Run | Scr Mat Min Machines Disabled . | . . . Max in Single Turn . | . . . Machines Sabotaged . | . . . Garrisons Compromised . | . . . Overloaded Fab Kills . | . . . Fab Network Shutdowns . | . . . Hacking | -11 -10 -10 --------- Run | Scr Mat Min Machines Accessed 4 | . 4 . Terminals 4 | . 4 . Fabricators . | . . . Repair Stations . | . . . Recycling Units . | . . . Scanalyzers . | . . . Garrison Access . | . . . Total Hacks 11 | . 11 . Successful 9 | . 9 . Failed 2 | . 2 . Catastrophic . | . . . Database Lockouts . | . . . Manual 10 | . 10 . Terminals 11 | . 11 . Fabricators . | . . . Repair Stations . | . . . Recycling Units . | . . . Scanalyzers . | . . . Garrison Access . | . . . Terminal Hacks 1 | . 1 . Zone Layout 1 | . 1 . Fabricator Hacks . | . . . Repair Station Hacks . | . . . Recycling Unit Hacks . | . . . Scanalyzer . | . . . Garrison Access Hacks . | . . . Unauthorized Hacks 18 | . 18 . Terminals 8 | . 8 . Track 4 | . 4 . Botnet 4 | . 4 . Fabricators . | . . . Repair Stations . | . . . Recycling Units . | . . . Scanalyzers . | . . . Garrison Access . | . . . Data Cores Recovered . | . . . Used . | . . . Hacking Detections 3 | . 3 . Full Trace Events 1 | . 1 . Feedback Events . | . . . Feedback Blocked . | . . . Robot Schematics Acquired . | . . . Robots Built . | . . . Matter . | . . . Time . | . . . Total Robot Build Rating . | . . . Part Schematics Acquired . | . . . Parts Built . | . . . Matter . | . . . Time . | . . . Total Part Build Rating . | . . . Parts Repaired . | . . . Time . | . . . Parts Recycled . | . . . Recycled Matter . | . . . Retrieved Matter . | . . . Retrieved Components . | . . . Parts Scanalyzed . | . . . Part Schematics Acquired . | . . . Parts Damaged . | . . . Bothacking | -11 -10 -10 ------------ Run | Scr Mat Min Used RIF Installer . | . . . Robots Hacked . | . . . Non-combat . | . . . Combat . | . . . Robot Hacks Applied . | . . . Relay Couplers Released . | . . . Robots Rewired . | . . . Allies Hacked . | . . . Hacks Repelled . | . . . Allies | -11 -10 -10 -------- Run | Scr Mat Min Total Allies . | . . . Largest Group . | . . . Highest-Rated Group . | . . . Highest-Rated Ally . | . . . Total Orders . | . . . Ally Attacks . | . . . Total Damage . | . . . Kills . | . . . Allies Corrupted . | . . . Allies Melted . | . . . Intel | -11 -10 -10 ------- Run | Scr Mat Min Robot Analysis Total . | . . . Derelict Logs Recovered . | . . . Drone Launches . | . . . Drone Recoveries . | . . . Exploration | -11 -10 -10 ------------- Run | Scr Mat Min Turns Passed 1772 | . 1373 399 Spaces Moved 825 | 1 646 178 Core . | . . . Treads . | . . . Legs 825 | 1 646 178 Wheels . | . . . Hover . | . . . Flight . | . . . Fastest Speed 120 | 120 120 210 Average Speed 176 | 120 167 210 Slowest Speed 300 | 120 300 210 Overloaded Moves . | . . . Propulsion Burnouts . | . . . Robots Hopped . | . . . Cave-ins Triggered . | . . . Exploration Rate (%) 40 | 2 80 39 Regions Visited 2 Branch Regions 1 Pre-discovered Areas . | . . . Known Exits Taken . | . . . Unknown Exits Taken 2 | 1 1 . Scrap Searched 2 | . . 2 Spaces Dug . | . . . Terrain Destroyed . | . . . Melee . | . . . Projectile . | . . . AOE . | . . . Actions | -11 -10 -10 --------- Run | Scr Mat Min Total 1012 | . 819 193 Wait 51 | . 51 . Move 823 | . 645 178 Hop . | . . . Pick Up 25 | . 21 4 Fast Attach 5 | . 5 . Attach 6 | . 6 . Detach . | . . . Swap 6 | . 5 1 Drop 12 | . 11 1 Fire 77 | . 74 3 Melee 6 | . . 6 Ram . | . . . Kick 1 | . 1 . Crush . | . . . Escape Stasis . | . . . Rewire . | . . . Trap . | . . . Miscellaneous . | . . . Route ------- -11/Scrapyard -10/Materials (discovered 4 exits: [*Mat x3] / [*Min]) -10/Mines (discovered 1 exit: [*Mat]) History --------- Turn | Location | Event 1 | -11/Scrapyard | Discovered new exit (range 0) 1 | -11/Scrapyard | Entered Materials 144 | -10/Materials | Discovered new exit (range 8) 313 | -10/Materials | Build established: Mutant 374 | -10/Materials | Core integrity fell below 50% 887 | -10/Materials | Discovered new exit (range 4) 1223 | -10/Materials | Discovered new exit (range 15) 1284 | -10/Materials | Lost 4 parts (2p2n) 1315 | -10/Materials | Discovered new exit (range 16) 1374 | -10/Materials | Entered Mines 1400 | -10/Mines | Met a Derelict bent on vengeance 1438 | -10/Mines | Discovered new exit (range 11) 1710 | -10/Mines | A weapon hastily lodged in a ceiling crevice suddenly fell to the ground 1752 | -10/Mines | Excavation squad dispatched 1752 | -10/Mines | A large section of the Mines collapsed 1769 | -10/Mines | Core integrity fell below 20% 1773 | -10/Mines | Destroyed by as-91304 with Assembled Blade Last Messages --------------- 01537_ R-06 Scavenger collects Lgt. Assault Rifle. 01542_ Acquired 6 matter. 01545_ HC-ZYN(g): "WHERE ARE YOU, UNAWARE TRASH?! VENGEANCE UPON YOU!" 01546_ Acquired Lgt. Ion Engine. 01550_ R-06 Scavenger destroyed. 01553_ Acquired 12 matter. 01573_ HC-ZYN(g): "WHERE ARE YOU, UNAWARE TRASH?! VENGEANCE UPON YOU!" 01642_ Searching scrap... 01642_ Found 23 Matter. 01642_ Found Grenade Launcher. 01642_ Found Hover Unit. 01642_ Found Grenade Launcher. 01642_ Found Hcp. Battery. 01646_ Acquired Grenade Launcher. 01710_ A Mak. Hammer hastily lodged in a ceiling crevice suddenly falls to the ground. 01714_ Dropped Mining Laser. 01715_ Acquired Mak. Hammer. 01752_ ALERT: Suspicious cave-in, suspected derelict activity in mines. Dispatching escorted excavation squad. Map ----- +----------------------------------------------------+ | ##???????????????????????????????????????????? | | ###????????????????????????????????????????????? | | ##??????????????????????????????????????????????? | | #???????????????????????????????????????????????? | | =#???????????????????????????????????????????????? | | ##???????????##?????????????????????????????????? | | ##?????????? ###??????????????????????????????? | | #?????????? ???????????????????????????????? | | ##?????????? ???????????????????????????????? | | ###???????????# ???????????????????????????????? | | ??????????????# ???????????????????????????????? | | ??????????????# #???????????????????????????????? | | ??????????????# #????????????????????####???????? | | ??????????????# #???####??????????####| ###?????? | | ??????????????# #??## ##????????# ##????? | | ??????????????# #??# #????????# ### ##???? | | ###############! ##?# #?######## ### #???? | | =% ##?# #?# #???? | | ###############] ##?# ### ######### ##???? | | #???????????## ##?# ## #???????## ##????? | | #???????????# #??# # #?????????###?????? | | #???????????# ###### ##????????????????? | | #???????????## ## "## #????????????????? | | #????????????## ###;# #????????????????? | | ??????????????## ###;# ##????????????????? | | ???????????????## # @## ##?????????????????? | | ????????????????##### ##a#####??????????????????? | | ????????????????????## #;##?????????????????????? | | ?????????????????????## ###??????????????????????? | | ??????????????????????####???????????????????????? | | ?????????????????????????????????????????????????? | | ?????????????????????????????????????????????????? | | | | | | | | | | | | | | | | | | | | | | | | | | | | | | | | | | | | | +----------------------------------------------------+ Best States ------------- Heat Dissipation 25 Energy Generation 12 Energy Capacity 265 Matter Stores 300 Matter Capacity 300 Sight Range 16 Terrain Scan Density 10 Evasion (%) 40 Item Schematics ----------------- None Robot Schematics ------------------ None Fabricated ------------ Nothing Alien Tech Used ----------------- None Achievements -------------- None Challenges ------------ None Game ------ Seed HelicalCoilCarapace Manual? 0 Play Time 00:16:20 Cumulative 313.9 hours Start 2019.11.02 @ 21:15:36 End 2019.11.02 @ 21:29:21 Sessions 1 Manual Loads 0 Difficulty Rogue Special Mode None Game No. 44 Rogue 44 Adventurer 0 Explorer 0 Win Type - Total 0 Types 0/0/0/0/0/0/0 Lore% 21 Gallery% 36 Achievement% 21 Wizard Run 0 Options --------- ASCII 0 Keyboard 0 Movement Numpad Keybinds 0 Fullscreen 1 Font 18/SmallcapsGlow Map View 76x50 Tactical HUD 1 Map Filters NONE Filters NONE Steam 1 RUN: c818c90d-a12e-4b1a-8bce-a87c177c9887